fUST/lending_fUST_20240721
["ID","MTS","AMOUNT","RATE_DAILY","PERIOD"]
[332740738,1721496648019,-500.0,0.00013972,2]
[332740739,1721496648029,-500.0,0.00013972,2]
[332740740,1721496648043,-500.0,0.00013972,2]
[332740741,1721496648053,-500.0,0.00013972,2]
[332740742,1721496648062,-750.94,0.00013972,2]
[332740743,1721496648073,-500.0,0.00013972,2]
[332740744,1721496648082,-500.0,0.00013972,2]
[332740745,1721496648092,-500.0,0.00013972,2]
[332740746,1721496648102,-518.24520718,0.00013972,2]
[332740747,1721496648112,-500.0,0.00013972,2]
[332740748,1721496648121,-500.0,0.00013972,2]
[332740749,1721496648130,-500.0,0.00013972,2]
[332740750,1721496648139,-1399.74,0.00013972,2]
[332740751,1721496648148,-1844.21,0.00013972,2]
[332740752,1721496648158,-1446.15,0.00013972,2]
[332740753,1721496648168,-171.17220993,0.00013972,2]
[332740754,1721496648178,-500.0,0.00013972,2]
[332740755,1721496648187,-2783.24,0.00013972,2]
[332740756,1721496648196,-500.0,0.00013972,2]
[332740757,1721496648207,-3985.56,0.00013972,2]
[332740758,1721496648216,-961.14,0.00013972,2]
[332740759,1721496648225,-500.0,0.00013972,2]
[332740760,1721496648234,-500.0,0.00013972,2]
[332740761,1721496648244,-500.0,0.00013972,2]
[332740762,1721496648254,-500.0,0.00013972,2]
[332740763,1721496648263,-500.0,0.00013972,2]
[332740764,1721496648273,-501.41673418,0.00013972,2]
[332740765,1721496648282,-1676.12,0.00013972,2]
[332740766,1721496648291,-500.0,0.00013972,2]
[332740767,1721496648300,-500.0,0.00013972,2]
[332740768,1721496648310,-507.53,0.00013972,2]
[332740769,1721496648321,-2228.19,0.00013972,2]
[332740770,1721496648330,-626.67,0.00013972,2]
[332740771,1721496648340,-193.33998903,0.00013972,2]
[332740772,1721496648350,-794.98,0.00013972,2]
[332740773,1721496648360,-500.0,0.00013972,2]
[332740774,1721496648370,-151.0,0.00013972,2]
[332740775,1721496648380,-976.92,0.00013972,2]
[332740776,1721496648390,-2251.38,0.00013972,2]
[332740777,1721496648399,-151.0,0.00013972,2]
[332740778,1721496648409,-500.0,0.00013972,2]
[332740779,1721496648422,-1220.77,0.00013972,2]
[332740780,1721496648432,-500.0,0.00013972,2]
[332740781,1721496648441,-652.54,0.00013972,2]
[332740782,1721496648451,-710.1,0.00013972,2]
[332740783,1721496648461,-2877.84,0.00013972,2]
[332740784,1721496648470,-500.0,0.00013972,2]
[332740785,1721496648481,-1137.55,0.00013972,2]
[332740786,1721496648491,-488.59552143,0.00013972,2]
[332740787,1721496648501,-500.0,0.00013972,2]
[332740788,1721496648510,-500.0,0.00013972,2]
[332740789,1721496648520,-500.0,0.00013972,2]
[332740790,1721496648530,-10408.57,0.00013972,2]
[332740791,1721496648539,-771.58,0.00013972,2]
[332740792,1721496648548,-3766.42,0.00013972,2]
[332740793,1721496648558,-605.36,0.00013972,2]
[332740794,1721496648569,-500.0,0.00013972,2]
[332740795,1721496648578,-1001.81,0.00013972,2]
[332740796,1721496648589,-500.0,0.00013972,2]
[332740797,1721496648598,-500.0,0.00013972,2]
[332740798,1721496648607,-500.0,0.00013972,2]
[332740799,1721496648617,-705.22,0.00013972,2]
[332740800,1721496648627,-500.0,0.00013972,2]
[332740801,1721496648637,-524.75018145,0.00013972,2]
[332740802,1721496648646,-530.16,0.00013972,2]
[332740803,1721496648656,-709.79,0.00013972,2]
[332740804,1721496648666,-500.0,0.00013972,2]
[332740805,1721496648676,-500.0,0.00013972,2]
[332740806,1721496648685,-500.0,0.00013972,2]
[332740807,1721496648696,-2560.67,0.00013972,2]
[332740808,1721496648706,-1351.37,0.00013972,2]
[332740809,1721496648715,-4982.28,0.00013972,2]
[332740810,1721496648725,-586.14,0.00013972,2]
[332740811,1721496648735,-601.52472544,0.00013972,2]
[332740812,1721496648745,-6101.97,0.00013972,2]
[332740813,1721496648755,-1127.84,0.00013972,2]
[332740814,1721496648765,-2039.09,0.00013972,2]
[332740815,1721496648775,-521.4783236,0.00013972,2]
[332740816,1721496648785,-653.61,0.00013972,2]
[332740817,1721496648795,-1354.6,0.00013972,2]
[332740818,1721496648805,-500.0,0.00013972,2]
[332740819,1721496648815,-500.0,0.00013972,2]
[332740820,1721496648828,-500.0,0.00013972,2]
[332740821,1721496648838,-814.58,0.00013972,2]
[332740822,1721496648849,-3687.47,0.00013972,2]
[332740823,1721496648860,-219.41559619,0.00013972,2]
[332740824,1721496648872,-500.0,0.00013972,2]
[332740825,1721496648881,-6147.63,0.00013972,2]
[332740826,1721496648891,-622.99,0.00013972,2]
[332740827,1721496648901,-500.0,0.00013972,2]
[332740828,1721496648911,-500.0,0.00013972,2]
[332740829,1721496648920,-2577.42,0.00013972,2]
[332740830,1721496648931,-1798.23,0.00013972,2]
[332740831,1721496648940,-500.0,0.00013972,2]
[332740832,1721496648950,-1002.74,0.00013972,2]
[332740833,1721496648960,-500.0,0.00013972,2]
[332740834,1721496648969,-1585.46,0.00013972,2]
[332740835,1721496648979,-500.0,0.00013972,2]
[332740836,1721496648988,-8339.41,0.00013972,2]
[332740837,1721496648998,-500.0,0.00013972,2]
[332740838,1721496649008,-500.0,0.00013972,2]
[332740839,1721496649018,-21642.2,0.00013972,2]
[332740840,1721496649028,-10351.79,0.00013972,2]
[332740841,1721496649038,-2372.21,0.00013972,2]
[332740842,1721496649047,-2406.18,0.00013972,2]
[332740843,1721496649057,-500.0,0.00013972,2]
[332740844,1721496649068,-251.91577685,0.00013972,2]
[332740845,1721496649078,-857.46,0.00013972,2]
[332740846,1721496649088,-500.0,0.00013972,2]
[332740847,1721496649098,-710.94,0.00013972,2]
[332740848,1721496649108,-3168.77,0.00013972,2]
[332740849,1721496649117,-4527.59,0.00013972,2]
[332740850,1721496649127,-500.0,0.00013972,2]
[332740851,1721496649137,-729.38,0.00013972,2]
[332740852,1721496649148,-500.0,0.00013972,2]
[332740853,1721496649159,-500.0,0.00013972,2]
[332740854,1721496649170,-823.18,0.00013972,2]
[332740855,1721496649179,-1686.66,0.00013972,2]
[332740856,1721496649189,-2370.86,0.00013972,2]
[332740857,1721496649199,-3409.98,0.00013972,2]
[332740858,1721496649210,-500.0,0.00013972,2]
[332740859,1721496649219,-500.0,0.00013972,2]
[332740860,1721496649230,-3379.4,0.00013972,2]
[332740861,1721496649241,-1365.63,0.00013972,2]
[332740862,1721496649251,-1323.73,0.00013972,2]
[332740863,1721496649262,-500.0,0.00013972,2]
[332740864,1721496649272,-500.0,0.00013972,2]
[332740865,1721496649282,-500.0,0.00013972,2]
[332740866,1721496649292,-500.0,0.00013972,2]
[332740867,1721496649303,-500.0,0.00013972,2]
[332740868,1721496649313,-549.12,0.00013972,2]
[332740869,1721496649325,-2073.65,0.00013972,2]
[332740870,1721496649334,-500.0,0.00013972,2]
[332740871,1721496649345,-500.0,0.00013972,2]
[332740872,1721496649355,-574.86,0.00013972,2]
[332740873,1721496649366,-520.92944104,0.00013972,2]
[332740874,1721496649376,-2060.39,0.00013972,2]
[332740875,1721496649387,-6166.2,0.00013972,2]
[332740876,1721496649398,-3526.35,0.00013972,2]
[332740877,1721496649408,-679.13,0.00013972,2]
[332740878,1721496649421,-699.13,0.00013972,2]
[332740879,1721496649432,-500.0,0.00013972,2]
[332740880,1721496649442,-503.08165892,0.00013972,2]
[332740881,1721496649453,-2945.32,0.00013972,2]
[332740882,1721496649463,-1420.36,0.00013972,2]
[332740883,1721496649474,-2380.43,0.00013972,2]
[332740884,1721496649485,-743.569274,0.00013972,2]
[332740885,1721496649495,-743.569274,0.00013972,2]
[332740886,1721496649506,-3630.42,0.00013972,2]
[332740887,1721496649516,-453.62559309,0.00013972,2]
[332740888,1721496649526,-743.569274,0.00013972,2]
[332740889,1721496649535,-743.569274,0.00013972,2]
[332740890,1721496649545,-500.0,0.00013972,2]
[332740891,1721496649555,-500.0,0.00013972,2]
[332740892,1721496649565,-3171.01,0.00013972,2]
[332740893,1721496649578,-500.0,0.00013972,2]
[332740894,1721496649589,-1011.12,0.00013972,2]
[332740895,1721496649600,-570.19,0.00013972,2]
[332740896,1721496649609,-500.0,0.00013972,2]
[332740897,1721496649620,-500.0,0.00013972,2]
[332740898,1721496649630,-500.0,0.00013972,2]
[332740899,1721496649640,-500.0,0.00013972,2]
[332740900,1721496649651,-1289.19,0.00013972,2]
[332740901,1721496649661,-500.0,0.00013972,2]
[332740902,1721496649671,-500.0,0.00013972,2]
[332740903,1721496649681,-1035.25,0.00013972,2]
[332740904,1721496649691,-3550.22,0.00013972,2]
[332740905,1721496649701,-13595.83,0.00013972,2]
[332740906,1721496649711,-833.28,0.00013972,2]
[332740907,1721496649724,-503.63206823,0.00013972,2]
[332740908,1721496649734,-643.83,0.00013972,2]
[332740909,1721496649744,-11800.57,0.00013972,2]
[332740910,1721496649755,-500.0,0.00013972,2]
[332740911,1721496649766,-3226.79,0.00013972,2]
[332740912,1721496649776,-500.0,0.00013972,2]
[332740913,1721496649787,-500.0,0.00013972,2]
[332740914,1721496649799,-500.0,0.00013972,2]
[332740915,1721496649808,-1213.52,0.00013972,2]
[332740916,1721496649819,-542.02,0.00013972,2]
[332740917,1721496649828,-500.0,0.00013972,2]
[332740918,1721496649838,-500.0,0.00013972,2]
[332740919,1721496649848,-526.48973884,0.00013972,2]
[332740920,1721496649858,-500.0,0.00013972,2]
[332740921,1721496649872,-1319.68,0.00013972,2]
[332740922,1721496649883,-16891.84,0.00013972,2]
[332740923,1721496649894,-1425.22,0.00013972,2]
[332740924,1721496649904,-500.0,0.00013972,2]
[332740925,1721496649913,-1045.3,0.00013972,2]
[332740926,1721496649924,-1808.36,0.00013972,2]
[332740927,1721496649936,-1115.51,0.00013972,2]
[332740928,1721496649949,-1656.01,0.00013972,2]
[332740929,1721496649961,-901.36,0.00013972,2]
[332740930,1721496649971,-500.0,0.00013972,2]
[332740931,1721496649981,-1769.08,0.00013972,2]
[332740932,1721496649992,-2580.08,0.00013972,2]
[332740933,1721496650001,-848.62,0.00013972,2]
[332740934,1721496650011,-500.0,0.00013972,2]
[332740935,1721496650021,-500.0,0.00013972,2]
[332740936,1721496650031,-10345.82,0.00013972,2]
[332740937,1721496650042,-511.87,0.00013972,2]
[332740938,1721496650052,-2932.08,0.00013972,2]
[332740939,1721496650062,-500.0,0.00013972,2]
[332740940,1721496650072,-539.98,0.00013972,2]
[332740941,1721496650082,-500.0,0.00013972,2]
[332740942,1721496650092,-500.0,0.00013972,2]
[332740943,1721496650102,-46359.09,0.00013972,2]
[332740944,1721496650112,-535.32,0.00013972,2]
[332740945,1721496650123,-855.71,0.00013972,2]
[332740946,1721496650132,-500.0,0.00013972,2]
[332740947,1721496650142,-500.0,0.00013972,2]
[332740948,1721496650151,-630.75,0.00013972,2]
[332740949,1721496650161,-3262.98,0.00013972,2]
[332740950,1721496650171,-500.0,0.00013972,2]
[332740951,1721496650180,-538.07,0.00013972,2]
[332740952,1721496650190,-500.0,0.00013972,2]
[332740953,1721496650199,-2704.37,0.00013972,2]
[332740954,1721496650209,-894.49,0.00013972,2]
[332740955,1721496650219,-1967.52,0.00013972,2]
[332740956,1721496650229,-150.112233,0.00014,4]
[332740957,1721496650239,-154.9094073,0.00014,2]
[332740958,1721496650249,-150.112233,0.00014,5]
[332740959,1721496650258,-150.112233,0.000142,4]
[332740960,1721496650267,-503.42,0.00014235,2]
[332740961,1721496650277,-503.42,0.00014235,2]
[332740962,1721496650287,-503.42,0.00014245,2]
[332740963,1721496650296,-503.42,0.00014245,2]
[332740964,1721496650306,-503.42,0.00014245,2]
[332740965,1721496650315,-503.42,0.00014245,2]
[332740966,1721496650326,-503.52640636,0.00014245,2]
[332740967,1721496650336,-630.86,0.00014246,2]
[332740968,1721496650346,-500.0,0.00014246,2]
[332740969,1721496650355,-572.41582763,0.00014246,2]
[332740970,1721496650365,-500.0,0.00014246,2]
[332740971,1721496650375,-951.81,0.00014246,2]
[332740972,1721496650385,-765.85,0.00014246,2]
[332740973,1721496650394,-500.0,0.00014246,2]
[332740974,1721496650404,-500.0,0.00014246,2]
[332740975,1721496650416,-587.48,0.00014246,2]
[332740976,1721496650427,-500.0,0.00014246,2]
[332740977,1721496650438,-500.0,0.00014246,2]
[332740978,1721496650447,-500.0,0.00014246,2]
[332740979,1721496650459,-823.6,0.00014246,2]
[332740980,1721496650468,-953.24,0.00014246,2]
[332740981,1721496650478,-676.97,0.00014246,2]
[332740982,1721496650489,-599.98,0.00014246,2]
[332740983,1721496650499,-500.0,0.00014246,2]
[332740984,1721496650510,-298.47911728,0.00014246,2]
[332740985,1721496650522,-500.0,0.00014246,2]
[332740986,1721496650532,-500.0,0.00014246,2]
[332740987,1721496650541,-500.0,0.00014246,2]
[332740988,1721496650551,-500.0,0.00014246,2]
[332740989,1721496650561,-1167.05,0.00014246,2]
[332740990,1721496650573,-500.0,0.00014246,2]
[332740991,1721496650585,-418.79387608,0.00014246,2]
[332740992,1721496650595,-500.0,0.00014246,2]
[332740993,1721496650605,-500.0,0.00014246,2]
[332740994,1721496650615,-500.0,0.00014246,2]
[332740995,1721496650625,-572.79,0.00014246,2]
[332740996,1721496650635,-500.0,0.00014246,2]
[332740997,1721496650644,-708.76,0.00014246,2]
[332740998,1721496650654,-500.0,0.00014246,2]
[332740999,1721496650665,-500.0,0.00014246,2]
[332741000,1721496650675,-500.0,0.00014246,2]
[332741001,1721496650684,-500.0,0.00014246,2]
[332741002,1721496650694,-527.11963763,0.00014246,2]
[332741003,1721496650703,-500.0,0.00014246,2]
[332741004,1721496650713,-500.0,0.00014246,2]
[332741005,1721496650723,-467.3288532,0.00014246,2]
[332741006,1721496650733,-708.28,0.00014246,2]
[332741007,1721496650742,-500.0,0.00014246,2]
[332741008,1721496650751,-500.0,0.00014246,2]
[332741009,1721496650761,-500.0,0.00014246,2]
[332741010,1721496650771,-500.0,0.00014246,2]
[332741011,1721496650781,-500.0,0.00014246,2]
[332741012,1721496650791,-500.0,0.00014246,2]
[332741013,1721496650801,-150.0,0.00014246,2]
[332741014,1721496650810,-500.0,0.00014246,2]
[332741015,1721496650821,-500.0,0.00014246,2]
[332741016,1721496650830,-500.0,0.00014246,2]
[332741017,1721496650840,-500.0,0.00014246,2]
[332741018,1721496650849,-500.0,0.00014246,2]
[332741019,1721496650859,-916.65,0.00014246,2]
[332741020,1721496650872,-500.0,0.00014246,2]
[332741021,1721496650882,-877.73,0.00014246,2]
[332741022,1721496650892,-530.72,0.00014246,2]
[332741023,1721496650903,-500.0,0.00014246,2]
[332741024,1721496650914,-351.71501332,0.00014246,2]
[332741025,1721496650926,-662.6,0.00014246,2]
[332741026,1721496650938,-500.0,0.00014246,2]
[332741027,1721496650948,-500.0,0.00014246,2]
[332741028,1721496650958,-500.0,0.00014246,2]
[332741029,1721496650968,-500.0,0.00014246,2]
[332741030,1721496650978,-570.59373138,0.00014246,2]
[332741031,1721496650989,-503.81,0.00014246,2]
[332741032,1721496651001,-694.98,0.00014246,2]
[332741033,1721496651011,-621.70287847,0.00014246,2]
[332741034,1721496651021,-500.0,0.00014246,2]
[332741035,1721496651031,-1331.09,0.00014246,2]
[332741036,1721496651042,-500.0,0.00014246,2]
[332741037,1721496651052,-585.07,0.00014246,2]
[332741038,1721496651061,-850.73,0.00014246,2]
[332741039,1721496651072,-500.0,0.00014246,2]
[332741040,1721496651088,-519.12,0.00014246,2]
[332741041,1721496651099,-500.0,0.00014246,2]
[332741042,1721496651108,-541.56,0.00014246,2]
[332741043,1721496651118,-1412.14,0.00014246,2]
[332741044,1721496651127,-2303.78,0.00014246,2]
[332741045,1721496651136,-571.25,0.00014246,2]
[332741046,1721496651146,-500.0,0.00014246,2]
[332741047,1721496651155,-500.0,0.00014246,2]
[332741048,1721496651165,-617.06,0.00014246,2]
[332741049,1721496651175,-2326.72,0.00014246,2]
[332741050,1721496651184,-645.64,0.00014246,2]
[332741051,1721496651194,-2993.58,0.00014246,2]
[332741052,1721496651203,-500.0,0.00014246,2]
[332741053,1721496651213,-500.0,0.00014246,2]
[332741054,1721496651223,-500.0,0.00014246,2]
[332741055,1721496651232,-500.0,0.00014246,2]
[332741056,1721496651242,-500.0,0.00014246,2]
[332741057,1721496651252,-2225.17,0.00014246,2]
[332741058,1721496651261,-3334.11,0.00014246,2]
[332741059,1721496651272,-500.0,0.00014246,2]
[332741060,1721496651283,-500.0,0.00014246,2]
[332741061,1721496651294,-500.0,0.00014246,2]
[332741062,1721496651305,-660.59,0.00014246,2]
[332741063,1721496651316,-324.77928867,0.00014246,2]
[332741064,1721496651329,-545.13,0.00014246,2]
[332741065,1721496651341,-1126.65,0.00014246,2]
[332741066,1721496651353,-500.0,0.00014246,2]
[332741067,1721496651362,-500.0,0.00014246,2]
[332741068,1721496651372,-1007.13,0.00014246,2]
[332741069,1721496651382,-500.0,0.00014246,2]
[332741070,1721496651392,-1345.49,0.00014246,2]
[332741071,1721496651401,-500.0,0.00014246,2]
[332741072,1721496651411,-788.19,0.00014246,2]
[332741073,1721496651421,-597.81,0.00014246,2]
[332741074,1721496651431,-500.0,0.00014246,2]
[332741075,1721496651440,-619.68,0.00014246,2]
[332741076,1721496651450,-766.44,0.00014246,2]
[332741077,1721496651460,-500.0,0.00014246,2]
[332741078,1721496651470,-500.0,0.00014246,2]
[332741079,1721496651670,-500.0,0.00014246,2]
[332741080,1721496651680,-535.93,0.00014246,2]
[332741081,1721496651689,-500.0,0.00014246,2]
[332741082,1721496651699,-500.0,0.00014246,2]
[332741083,1721496651708,-500.0,0.00014246,2]
[332741084,1721496651717,-500.0,0.00014246,2]
[332741085,1721496651726,-500.0,0.00014246,2]
[332741086,1721496651736,-590.19,0.00014246,2]
[332741087,1721496651746,-500.0,0.00014246,2]
[332741088,1721496651755,-4278.72,0.00014246,2]
[332741089,1721496651765,-500.0,0.00014246,2]
[332741090,1721496651775,-500.0,0.00014246,2]
[332741091,1721496651784,-500.0,0.00014246,2]
[332741092,1721496651794,-500.0,0.00014246,2]
[332741093,1721496651804,-423.73046473,0.00014246,2]
[332741094,1721496651815,-500.0,0.00014246,2]
[332741095,1721496651827,-500.0,0.00014246,2]
[332741096,1721496651837,-500.0,0.00014246,2]
[332741097,1721496651847,-1407.61,0.00014246,2]
[332741098,1721496651858,-1142.92,0.00014246,2]
[332741099,1721496651869,-591.25,0.00014246,2]
[332741100,1721496651879,-949.77,0.00014246,2]
[332741101,1721496651889,-500.0,0.00014246,2]
[332741102,1721496651898,-553.52,0.00014246,2]
[332741103,1721496651909,-500.0,0.00014246,2]
[332741104,1721496651919,-500.0,0.00014246,2]
[332741105,1721496651929,-1972.47,0.00014246,2]
[332741106,1721496651941,-691.03,0.00014246,2]
[332741107,1721496651950,-787.87,0.00014246,2]
[332741108,1721496651960,-500.0,0.00014246,2]
[332741109,1721496651971,-1286.36,0.00014246,2]
[332741110,1721496651981,-582.4,0.00014246,2]
[332741111,1721496651991,-500.0,0.00014246,2]
[332741112,1721496652000,-500.0,0.00014246,2]
[332741113,1721496652010,-1912.39,0.00014246,2]
[332741114,1721496652019,-814.65,0.00014246,2]
[332741115,1721496652029,-500.0,0.00014246,2]
[332741116,1721496652039,-500.0,0.00014246,2]
[332741117,1721496652049,-500.0,0.00014246,2]
[332741118,1721496652059,-516.51303496,0.00014246,2]
[332741119,1721496652070,-500.0,0.00014246,2]
[332741120,1721496652080,-500.0,0.00014246,2]
[332741121,1721496652090,-538.82,0.00014246,2]
[332741122,1721496652100,-500.0,0.00014246,2]
[332741123,1721496652110,-500.0,0.00014246,2]
[332741124,1721496652120,-500.0,0.00014246,2]
[332741125,1721496652130,-500.0,0.00014246,2]
[332741126,1721496652140,-893.95,0.00014246,2]
[332741127,1721496652150,-973.63,0.00014246,2]
[332741128,1721496652160,-500.0,0.00014246,2]
[332741129,1721496652170,-500.0,0.00014246,2]
[332741130,1721496652180,-500.0,0.00014246,2]
[332741131,1721496652189,-500.0,0.00014246,2]
[332741132,1721496652200,-560.73301691,0.00014246,2]
[332741133,1721496652212,-500.0,0.00014246,2]
[332741134,1721496652224,-934.67,0.00014246,2]
[332741135,1721496652234,-500.0,0.00014246,2]
[332741136,1721496652244,-1025.57,0.00014246,2]
[332741137,1721496652254,-500.0,0.00014246,2]
[332741138,1721496652265,-500.0,0.00014246,2]
[332741139,1721496652275,-2847.46,0.00014246,2]
[332741140,1721496652285,-2169.45,0.00014246,2]
[332741141,1721496652297,-627.3,0.00014246,2]
[332741142,1721496652308,-1085.8,0.00014246,2]
[332741143,1721496652319,-1869.16,0.00014246,2]
[332741144,1721496652330,-1046.78,0.00014246,2]
[332741145,1721496652342,-500.0,0.00014246,2]
[332741146,1721496652352,-2123.05,0.00014246,2]
[332741147,1721496652363,-2305.47,0.00014246,2]
[332741148,1721496652373,-542.29,0.00014246,2]
[332741149,1721496652383,-2780.97,0.00014246,2]
[332741150,1721496652392,-500.0,0.00014246,2]
[332741151,1721496652404,-752.88,0.00014246,2]
[332741152,1721496652415,-500.0,0.00014246,2]
[332741153,1721496652426,-500.0,0.00014246,2]
[332741154,1721496652437,-500.0,0.00014246,2]
[332741155,1721496652448,-500.0,0.00014246,2]
[332741156,1721496652458,-500.0,0.00014246,2]
[332741157,1721496652469,-500.0,0.00014246,2]
[332741158,1721496652479,-500.0,0.00014246,2]
[332741159,1721496652489,-500.0,0.00014246,2]
[332741160,1721496652498,-750.94,0.00014246,2]
[332741161,1721496652508,-500.0,0.00014246,2]
[332741162,1721496652518,-500.0,0.00014246,2]
[332741163,1721496652528,-500.0,0.00014246,2]
[332741164,1721496652538,-500.0,0.00014246,2]
[332741165,1721496652548,-500.0,0.00014246,2]
[332741166,1721496652558,-500.0,0.00014246,2]
[332741167,1721496652569,-1399.74,0.00014246,2]
[332741168,1721496652579,-1844.21,0.00014246,2]
[332741169,1721496652588,-1446.15,0.00014246,2]
[332741170,1721496652598,-500.0,0.00014246,2]
[332741171,1721496652608,-2783.24,0.00014246,2]
[332741172,1721496652619,-500.0,0.00014246,2]
[332741173,1721496652629,-3985.56,0.00014246,2]
[332741174,1721496652638,-961.14,0.00014246,2]
[332741175,1721496652647,-500.0,0.00014246,2]
[332741176,1721496652658,-500.0,0.00014246,2]
[332741177,1721496652669,-500.0,0.00014246,2]
[332741178,1721496652678,-500.0,0.00014246,2]
[332741179,1721496652688,-500.0,0.00014246,2]
[332741180,1721496652698,-1676.12,0.00014246,2]
[332741181,1721496652707,-500.0,0.00014246,2]
[332741182,1721496652717,-500.0,0.00014246,2]
[332741183,1721496652726,-507.53,0.00014246,2]
[332741184,1721496652736,-2228.19,0.00014246,2]
[332741185,1721496652746,-626.67,0.00014246,2]
[332741186,1721496652756,-794.98,0.00014246,2]
[332741187,1721496652766,-500.0,0.00014246,2]
[332741188,1721496652776,-976.92,0.00014246,2]
[332741189,1721496652785,-2251.38,0.00014246,2]
[332741190,1721496652794,-151.0,0.00014246,2]
[332741191,1721496652804,-151.0,0.00014246,2]
[332741192,1721496652813,-1220.77,0.00014246,2]
[332741193,1721496652823,-500.0,0.00014246,2]
[332741194,1721496652833,-161.72252877,0.00014246,2]
[332741195,1721496652842,-652.54,0.00014246,2]
[332741196,1721496652852,-710.1,0.00014246,2]
[332741197,1721496652862,-2877.84,0.00014246,2]
[332741198,1721496652876,-500.0,0.00014246,2]
[332741199,1721496652885,-1137.55,0.00014246,2]
[332741200,1721496652894,-500.0,0.00014246,2]
[332741201,1721496652906,-500.0,0.00014246,2]
[332741202,1721496652917,-500.0,0.00014246,2]
[332741203,1721496652927,-10408.57,0.00014246,2]
[332741204,1721496652937,-771.58,0.00014246,2]
[332741205,1721496652947,-3766.42,0.00014246,2]
[332741206,1721496652960,-605.36,0.00014246,2]
[332741207,1721496652972,-500.0,0.00014246,2]
[332741208,1721496652982,-1001.81,0.00014246,2]
[332741209,1721496652991,-500.0,0.00014246,2]
[332741210,1721496653001,-500.0,0.00014246,2]
[332741211,1721496653011,-500.0,0.00014246,2]
[332741212,1721496653020,-705.22,0.00014246,2]
[332741213,1721496653030,-583.33475046,0.00014246,2]
[332741214,1721496653039,-530.16,0.00014246,2]
[332741215,1721496653049,-709.79,0.00014246,2]
[332741216,1721496653058,-500.0,0.00014246,2]
[332741217,1721496653069,-500.0,0.00014246,2]
[332741218,1721496653078,-2560.67,0.00014246,2]
[332741219,1721496653087,-1351.37,0.00014246,2]
[332741220,1721496653097,-4982.28,0.00014246,2]
[332741221,1721496653106,-6101.97,0.00014246,2]
[332741222,1721496653117,-1127.84,0.00014246,2]
[332741223,1721496653130,-2039.09,0.00014246,2]
[332741224,1721496653140,-653.61,0.00014246,2]
[332741225,1721496653151,-1354.6,0.00014246,2]
[332741226,1721496653162,-500.0,0.00014246,2]
[332741227,1721496653173,-500.0,0.00014246,2]
[332741228,1721496653184,-500.0,0.00014246,2]
[332741229,1721496653194,-814.58,0.00014246,2]
[332741230,1721496653204,-3687.47,0.00014246,2]
[332741231,1721496653214,-500.0,0.00014246,2]
[332741232,1721496653223,-6147.63,0.00014246,2]
[332741233,1721496653233,-622.99,0.00014246,2]
[332741234,1721496653242,-353.74643827,0.00014246,2]
[332741235,1721496653251,-500.0,0.00014246,2]
[332741236,1721496653262,-2577.42,0.00014246,2]
[332741237,1721496653271,-1798.23,0.00014246,2]